bitfinex/quotes_SOLUSD_20250517
["timestamp","ask_amount","ask_price","bid_price","bid_amount"]
[1747505920700,5.98551505,167.07,167.0,18.64964886]
[1747505920940,26.0,167.06,166.93,18.64964886]
[1747505921101,26.0,167.06,166.95,18.64964886]
[1747505921522,26.0,167.06,166.95,26.0]
[1747505921899,26.0,167.06,166.94,18.64964886]
[1747505922105,26.0,167.06,166.91,1.19774719]
[1747505922305,26.0,167.06,166.91,27.19774719]
[1747505922607,26.0,167.06,166.92,18.64964886]
[1747505922810,26.0,167.02,166.92,18.64964886]
[1747505923325,26.0,167.04,166.94,18.64964886]
[1747505924219,26.0,167.04,166.92,2.96066925]
[1747505924220,26.0,167.02,166.92,18.64964886]
[1747505924534,26.0,167.02,166.91,19.84746817]
[1747505924704,26.0,167.02,166.9,13.88916228]
[1747505924900,20.95682892,167.01,166.91,18.64964886]
[1747505925530,20.95682892,167.01,166.91,44.64964886]
[1747505926403,8.1054,167.0,166.9,13.88916228]
[1747505927748,8.1054,167.0,166.91,18.64964886]
[1747505928407,8.1054,167.0,166.9,13.88916228]
[1747505928408,20.95933887,166.99,166.9,13.88916228]
[1747505929935,50.90125155,166.99,166.9,13.88916228]
[1747505930627,20.95933887,166.99,166.9,13.88916228]
[1747505930823,20.95933887,166.99,166.91,18.64964886]
[1747505931418,5.98838253,166.99,166.91,18.64964886]
[1747505931635,5.98838253,166.99,166.92,1.19779788]
[1747505932818,29.08,167.04,166.93,18.64964886]
[1747505933136,29.08,167.04,166.95,18.64964886]
[1747505933935,5.98694845,167.03,166.95,18.64964886]
[1747505934119,5.98694845,167.03,166.97,18.64964886]
[1747505934433,5.98694845,167.03,166.94,18.64964886]
[1747505934434,20.95431958,167.03,166.94,18.64964886]
[1747505934824,20.95431958,167.03,166.94,26.0]
[1747505935033,20.95431958,167.03,166.95,18.64964886]
[1747505936617,20.95431958,167.03,166.92,1.19766016]
[1747505936822,20.95431958,167.03,166.9,15.08689604]
[1747505937137,20.95431958,167.03,166.91,18.64964886]
[1747505937542,20.95431958,167.03,166.91,44.64964886]
[1747505937859,50.88906184,167.03,166.91,18.64964886]
[1747505938459,50.88906184,167.03,166.9,13.88916228]
[1747505938621,26.0,167.02,166.9,13.88916228]
[1747505938822,26.0,167.02,166.91,18.64964886]
[1747505939142,26.0,167.02,166.9,13.88916228]
[1747505939327,26.0,167.0,166.9,13.88916228]
[1747505939637,20.95933887,166.99,166.9,13.88916228]
[1747505939825,20.95933887,166.99,166.91,18.64964886]
[1747505940526,50.90125155,166.99,166.9,13.88916228]
[1747505940724,27.629,166.95,166.9,13.88916228]
[1747505940925,34.1924,166.95,166.86,18.64964886]
[1747505941127,8.1924,166.95,166.87,1.19834926]
[1747505941324,8.1924,166.95,166.87,71.69834926]
[1747505941541,8.1924,166.95,166.88,18.64964886]
[1747505941719,76.90125155,166.99,166.88,18.64964886]
[1747505941720,62.6124,167.01,166.9,18.64964886]
[1747505941919,50.89887866,167.0,166.89,70.5]
[1747505942352,26.0,166.97,166.84,18.64964886]
[1747505942529,26.0,166.97,166.84,89.14964886]
[1747505942846,26.0,166.97,166.86,18.64964886]
[1747505943616,80.83899842,167.0,166.86,18.64964886]
[1747505943822,28.3,166.99,166.9,18.64964886]
[1747505944533,20.9587589,167.0,166.92,18.64964886]
[1747505944731,49.2187589,167.0,166.92,18.64964886]
[1747505945131,79.15887866,167.0,166.91,3.30867687]
[1747505945650,79.15887866,167.0,166.92,3.30867687]
[1747505945945,5.98802395,167.0,166.93,19.84762046]
[1747505946134,5.98802395,167.0,166.92,3.30867687]
[1747505946455,20.95808383,167.0,166.92,3.30867687]
[1747505947439,20.95808383,167.0,166.93,3.30867687]
[1747505947721,50.89820359,167.0,166.93,3.30867687]
[1747505948057,26.0,166.99,166.93,3.30867687]
[1747505948839,26.0,166.99,166.91,4.31081376]
[1747505948840,26.0,166.99,166.94,3.30867687]
[1747505949347,20.96059407,166.98,166.94,3.30867687]
[1747505949530,28.02,166.97,166.94,3.30867687]
[1747505950119,28.02,166.97,166.89,4.31081376]
[1747505951151,27.88,166.97,166.89,4.31081376]
[1747505951535,20.96059407,166.98,166.9,18.64964886]
[1747505951741,20.96059407,166.98,166.9,22.03967741]
[1747505952751,5.98874116,166.98,166.92,18.64964886]
[1747505953178,72.79867067,167.01,166.94,18.64964886]
[1747505953846,1.629,167.01,166.94,19.84736241]
[1747505954150,27.7,167.05,166.94,19.84736241]
[1747505954573,14.96701752,167.04,166.94,19.84736241]
[1747505955263,5.98623166,167.05,166.96,18.64964886]
[1747505955469,5.98623166,167.05,166.96,19.84711738]
[1747505956469,5.98623166,167.05,167.01,4.24881532]
[1747505957567,5.98623166,167.05,167.02,3.39905225]
[1747505959263,5.98623166,167.05,167.03,3.39905225]
[1747505959472,5.98587333,167.06,167.03,3.39905225]
[1747505960743,20.95055667,167.06,166.98,4.24881532]
[1747505961438,20.95306512,167.04,166.98,4.24881532]
[1747505961950,20.95306512,167.04,166.93,19.84739184]
[1747505962143,27.2,167.03,166.93,19.84739184]
[1747505962338,26.0,167.02,166.91,1.19776448]
[1747505962540,6.2532,167.01,166.92,18.64964886]
[1747505963274,6.2532,167.01,166.93,3.40137376]
[1747505963482,20.95808383,167.0,166.93,3.40137376]
[1747505963645,26.0,166.99,166.93,3.40137376]
[1747505964764,26.0,166.97,166.87,18.64964886]
[1747505964952,27.06,166.96,166.86,18.64964886]
[1747505965152,27.06,166.96,166.87,1.19828152]
[1747505965372,27.06,166.96,166.86,18.64964886]
[1747505965887,20.96436058,166.95,166.86,18.64964886]
[1747505966051,20.96436058,166.95,166.87,3.4051697]
[1747505967076,20.96436058,166.95,166.87,4.60342449]
[1747505967385,5.98981731,166.95,166.87,4.60342449]
[1747505967585,20.96436058,166.95,166.87,1.19825479]
[1747505967752,20.96436058,166.95,166.86,18.64964886]
[1747505968280,50.91344713,166.95,166.86,18.64964886]
[1747505968479,50.91344713,166.95,166.83,18.64964886]
[1747505968976,26.0,166.92,166.82,4.24881532]
[1747505969178,26.0,166.92,166.83,18.64964886]
[1747505969541,32.0318,166.91,166.82,4.24881532]
[1747505969767,50.9286998,166.9,166.82,4.24881532]
[1747505969949,26.82,166.89,166.75,7.19543738]
[1747505970346,26.82,166.89,166.76,26.0]
[1747505970552,26.82,166.89,166.77,18.64964886]
[1747505970754,26.82,166.89,166.76,18.64964886]
[1747505971978,20.97315435,166.88,166.76,18.64964886]
[1747505972870,20.97315435,166.88,166.76,24.64611567]
[1747505973075,20.97315435,166.88,166.78,18.64964886]
[1747505973076,26.6,166.87,166.78,18.64964886]
[1747505973874,5.99304806,166.86,166.78,18.64964886]
[1747505976078,22.53046822,166.86,166.73,1.19878514]
[1747505976256,22.53046822,166.86,166.75,18.64964886]
[1747505976594,22.53046822,166.86,166.75,19.8486318]
[1747505977602,52.49570854,166.86,166.75,18.64964886]
[1747505977769,52.49570854,166.86,166.73,18.64964886]
[1747505978475,26.0,166.85,166.73,18.64964886]
[1747505979060,26.0,166.85,166.74,1.1992157]
[1747505979371,26.0,166.85,166.75,18.64964886]
[1747505979689,20.97818268,166.84,166.75,18.64964886]
[1747505980192,20.97818268,166.84,166.73,7.19678613]
[1747505980675,20.97818268,166.84,166.73,1.19914555]
[1747505981662,14.9844162,166.84,166.73,7.19679399]
[1747505982093,14.9844162,166.84,166.73,1.19914555]
[1747505984475,40.9844162,166.84,166.72,18.64964886]
[1747505986192,76.94701509,166.84,166.72,18.64964886]
[1747505986602,6.2753,166.83,166.72,18.64964886]
[1747505987075,6.2753,166.83,166.69,26.0]
[1747505987281,6.2753,166.83,166.68,18.64964886]
[1747505987596,6.2753,166.83,166.69,1.19940486]
[1747505988084,50.95312311,166.82,166.69,1.19940486]
[1747505988602,50.95312311,166.82,166.69,7.19854986]
[1747505988767,20.98069775,166.82,166.7,18.64964886]
[1747505988966,20.98069775,166.82,166.72,18.64964886]
[1747505988967,25.68,166.81,166.72,18.64964886]
[1747505990297,50.9592326,166.8,166.7,18.64964886]
[1747505990468,50.9592326,166.8,166.68,18.64964886]
[1747505990664,50.9592326,166.8,166.69,1.19949636]
[1747505990886,50.9592326,166.8,166.7,18.64964886]
[1747505991283,50.9592326,166.8,166.68,18.64964886]
[1747505992595,50.9592326,166.8,166.67,1.19947913]
[1747505992798,50.9592326,166.8,166.64,1.19961136]
[1747505992799,26.0,166.77,166.64,1.19961136]
[1747505993006,26.0,166.77,166.64,18.64964886]
[1747505993293,6.2883,166.76,166.62,12.02573495]
[1747505993499,25.46,166.75,166.62,18.64964886]
[1747505993799,25.46,166.74,166.62,18.64964886]
[1747505994222,20.99202302,166.73,166.62,18.64964886]
[1747505994396,20.99202302,166.73,166.62,89.14964886]
[1747505994574,20.99202302,166.73,166.62,95.15132289]
[1747505994774,25.4,166.72,166.63,1.19991825]
[1747505995981,25.4,166.72,166.62,95.15132289]
[1747505996186,25.4,166.72,166.62,89.14964886]
[1747505996404,20.99454141,166.71,166.62,90.34958563]
[1747505997177,20.99454141,166.71,166.62,89.14964886]
[1747505997401,20.99454141,166.71,166.62,90.34963014]
[1747505997604,20.99454141,166.71,166.62,96.35126005]
[1747506000711,20.99454141,166.71,166.62,90.34963014]
[1747506001600,20.99454141,166.71,166.62,96.35130293]
[1747506002120,20.99454141,166.71,166.62,90.34963014]
[1747506002282,20.99454141,166.71,166.62,96.35114931]
[1747506002908,20.99454141,166.71,166.62,90.34963014]
[1747506003296,20.99454141,166.71,166.62,96.35114626]
[1747506004813,20.99454141,166.71,166.62,90.34963014]
[1747506007816,20.99454141,166.71,166.62,96.35126663]
[1747506008014,5.9984404,166.71,166.62,96.35126663]
[1747506009019,5.9984404,166.71,166.64,18.64964886]
[1747506009266,5.9984404,166.71,166.64,19.8494079]
[1747506009393,5.99819471,166.72,166.64,116.3494079]
[1747506009902,20.99339624,166.72,166.64,116.3494079]
[1747506010104,14.99520153,166.72,166.64,90.3494079]
[1747506010306,14.99520153,166.72,166.66,18.64964886]
[1747506010502,14.99520153,166.72,166.66,89.14964886]
[1747506011814,5.99736116,166.74,166.66,89.14964886]
[1747506012317,5.99736116,166.74,166.67,2.24158257]
[1747506012518,20.99076406,166.74,166.67,2.24158257]
[1747506012818,20.99076406,166.74,166.68,2.24158257]
[1747506013612,20.99076406,166.74,166.69,2.24158257]
[1747506014417,20.99076406,166.74,166.7,2.24158257]
[1747506015293,20.99076406,166.74,166.66,89.14964886]
[1747506015493,45.49076406,166.74,166.68,18.64964886]
[1747506015903,45.49076406,166.74,166.69,2.23500012]
[1747506016505,45.49076406,166.74,166.7,2.23500012]
[1747506017028,71.49076406,166.74,166.7,2.23500012]
[1747506017525,71.49076406,166.74,166.66,70.5]
[1747506018109,71.49076406,166.74,166.67,2.23645934]
[1747506018298,101.47756986,166.74,166.68,2.23645934]
[1747506019020,7.9739,166.84,166.75,18.64964886]
[1747506019324,5.99412575,166.83,166.75,19.84867625]
[1747506020123,5.99412575,166.83,166.77,18.64964886]
[1747506020329,22.95447219,166.89,166.81,18.64964886]
[1747506020834,20.97315435,166.88,166.81,18.64964886]
[1747506023808,20.97315435,166.88,166.82,1.19868237]
[1747506024013,20.97315435,166.88,166.8,19.84819104]
[1747506026201,5.99232981,166.88,166.8,25.84309875]
[1747506026409,5.99205716,166.89,166.82,18.64964886]
[1747506026633,5.99205716,166.89,166.83,1.19838345]
[1747506027531,5.99161174,166.9,166.83,1.19838345]
[1747506030830,20.97064109,166.9,166.82,70.5]
[1747506031003,20.97064109,166.9,166.83,18.64964886]
[1747506031629,20.97064109,166.9,166.81,1.19858698]
[1747506031841,20.97064109,166.9,166.79,19.84835177]
[1747506032340,26.0,166.89,166.79,18.64964886]
[1747506032840,26.0,166.89,166.81,18.64964886]
[1747506033723,20.97315435,166.88,166.81,18.64964886]
[1747506034643,50.93480343,166.88,166.79,18.64964886]
[1747506035135,50.93480343,166.88,166.78,70.5]
[1747506038849,26.0,166.85,166.78,70.5]
[1747506039016,49.64,166.85,166.78,70.5]
[1747506039651,6.4786,166.84,166.78,70.5]
[1747506039851,30.1186,166.84,166.73,89.14964886]
[1747506040532,20.97944014,166.83,166.73,89.14964886]
[1747506041163,26.0,166.82,166.69,23.64]
[1747506041454,26.0,166.8,166.7,18.64964886]
[1747506041920,1.6553,166.79,166.7,18.64964886]
[1747506042124,23.54,166.78,166.68,18.64964886]
[1747506042322,23.54,166.78,166.68,89.14964886]
[1747506042544,23.54,166.78,166.68,18.64964886]
[1747506042748,74.60839958,166.77,166.67,18.64964886]
[1747506042931,74.60839958,166.77,166.64,105.61311416]
[1747506043141,6.4786,166.76,166.65,18.64964886]
[1747506045451,50.97451272,166.75,166.65,18.64964886]
[1747506045625,50.97451272,166.75,166.64,7.91338623]
[1747506045833,26.0,166.74,166.64,7.91338623]
[1747506046354,26.0,166.74,166.63,18.64964886]
[1747506047561,27.5204,166.7,166.58,6.1573]
[1747506047856,23.42,166.69,166.59,45.8497971]
[1747506048455,23.42,166.69,166.59,19.8497971]
[1747506048624,23.42,166.69,166.59,18.64964886]
[1747506048825,23.42,166.69,166.58,18.64964886]
[1747506049661,20.99832012,166.68,166.58,18.64964886]
[1747506051141,20.99832012,166.68,166.59,1.20026371]
[1747506051537,20.99832012,166.68,166.6,18.64964886]
[1747506051739,20.99832012,166.68,166.61,1.20015013]
[1747506052371,20.99832012,166.68,166.6,18.64964886]
[1747506052959,14.99880009,166.68,166.6,18.64964886]
[1747506053325,14.99880009,166.68,166.6,89.14964886]
[1747506054332,6.4408,166.67,166.6,89.14964886]
[1747506054534,6.4408,166.67,166.59,18.64964886]
[1747506054750,32.4408,166.67,166.59,18.64964886]
[1747506055163,21.00084002,166.66,166.59,18.64964886]
[1747506055361,21.00084002,166.66,166.59,70.5]
[1747506055550,51.00204006,166.66,166.59,70.5]
[1747506057160,21.00084002,166.66,166.59,70.5]
[1747506058367,51.00204006,166.66,166.59,70.5]
[1747506059263,51.00204006,166.66,166.56,89.14964886]
[1747506060760,51.00204006,166.66,166.56,18.64964886]
[1747506060965,26.0,166.63,166.55,18.64964886]
[1747506061264,46.68,166.62,166.55,89.14964886]
[1747506061653,22.65144242,166.61,166.55,70.5]
[1747506063463,22.65144242,166.61,166.56,18.64964886]
[1747506063772,21.00714242,166.61,166.55,70.5]
[1747506063966,26.0,166.6,166.49,1.20081246]
[1747506064141,26.0,166.6,166.49,70.5]
[1747506064470,26.0,166.56,166.49,70.5]
[1747506064665,48.94,166.56,166.49,18.64964886]
[1747506065666,6.00420294,166.55,166.49,18.64964886]
[1747506065852,21.01471029,166.55,166.49,18.64964886]
[1747506066354,6.00420294,166.55,166.5,1.20098165]
[1747506067659,6.00348201,166.57,166.5,1.20098165]
[1747506067967,6.00321923,166.58,166.53,18.64964886]
[1747506068153,6.00321923,166.58,166.53,70.5]
[1747506068741,21.01102328,166.58,166.53,70.5]
[1747506069373,6.00321923,166.58,166.54,18.64964886]
[1747506075186,21.01102328,166.58,166.53,70.5]
[1747506075477,6.00321923,166.58,166.53,70.5]
[1747506076187,21.01102328,166.58,166.53,70.5]
[1747506077094,21.01102328,166.58,166.51,18.64964886]
[1747506078095,21.01102328,166.58,166.52,1.20080888]
[1747506078395,23.66,166.59,166.53,18.64964886]
[1747506078596,29.66287732,166.59,166.53,18.64964886]
[1747506080398,29.66287732,166.59,166.53,24.65452292]
[1747506081496,29.66287732,166.59,166.53,18.64964886]
[1747506084200,29.66287732,166.59,166.53,95.15448468]
[1747506084870,29.66287732,166.59,166.55,18.64964886]
[1747506085582,6.00287732,166.59,166.55,18.64964886]
[1747506086680,22.74,166.6,166.53,77.70544508]
[1747506086681,6.00213563,166.61,166.57,18.64964886]
[1747506088210,30.30058735,166.62,166.57,18.64964886]
[1747506090704,45.30478852,166.62,166.56,70.5]
[1747506092216,45.30478852,166.62,166.53,1.20076599]
[1747506092385,30.30058735,166.62,166.54,24.65415995]
[1747506092711,7.52058735,166.62,166.55,1.20048785]
[1747506093086,7.52058735,166.62,166.57,18.64964886]
[1747506093914,7.52058735,166.62,166.58,2.23091356]
[1747506095288,12.51904835,166.63,166.58,2.23091356]
[1747506095489,51.52102757,166.64,166.59,18.64964886]
[1747506095690,51.52102757,166.64,166.6,2.23091356]
[1747506096707,51.52102757,166.64,166.59,10.88056242]
[1747506097698,22.78,166.64,166.59,77.70300824]
[1747506098788,22.78,166.64,166.6,24.65196804]
[1747506099219,22.78,166.64,166.61,1.20017904]
[1747506099425,28.71975558,166.68,166.61,71.70017904]
[1747506099629,5.99920379,166.69,166.62,18.64964886]
[1747506099827,24.3376,166.7,166.64,18.64964886]
[1747506099828,22.72,166.7,166.64,18.64964886]
[1747506100031,22.85482632,166.72,166.66,18.64964886]
[1747506100233,28.85299638,166.72,166.66,18.64964886]
[1747506100841,43.84819791,166.72,166.65,70.5]
[1747506101000,28.85299638,166.72,166.66,18.64964886]
[1747506102027,22.85482632,166.72,166.66,18.64964886]
[1747506102317,7.61521102,166.74,166.67,1.19962011]
[1747506103226,7.61521102,166.74,166.67,77.69918651]
[1747506103525,1.6176,166.74,166.68,18.64964886]
[1747506103732,7.61500447,166.74,166.68,18.64964886]
[1747506107326,7.61500447,166.74,166.68,89.14964886]
[1747506108932,1.6176,166.74,166.68,95.14901693]
[1747506109139,22.72,166.75,166.68,96.34863071]
[1747506109533,22.7,166.77,166.72,18.64964886]
[1747506109732,5.99632758,166.77,166.72,89.14964886]
[1747506111639,5.99632758,166.77,166.72,70.5]
[1747506111840,5.99632758,166.77,166.7,18.64964886]
[1747506112244,20.98703334,166.77,166.7,18.64964886]
[1747506112855,5.99772086,166.73,166.66,18.64964886]
[1747506113032,5.99772086,166.73,166.66,89.14964886]
[1747506113746,5.99772086,166.73,166.66,95.14969669]
[1747506114155,14.99100426,166.77,166.68,18.64964886]
[1747506114336,14.99100426,166.77,166.68,89.14964886]
[1747506115266,20.98728656,166.77,166.68,90.14903393]
[1747506115767,20.98728656,166.77,166.68,70.5]
[1747506116838,26.0,166.74,166.63,70.5]
[1747506117154,20.99328214,166.72,166.63,70.5]
[1747506117348,22.68,166.71,166.63,70.5]
[1747506118265,22.68,166.71,166.64,18.64964886]
[1747506118454,22.68,166.71,166.64,19.84963178]
[1747506119267,5.99880023,166.7,166.64,25.8505216]
[1747506119562,5.99880023,166.7,166.64,90.34963178]
[1747506120667,5.99880023,166.7,166.64,70.5]
[1747506121167,20.99580082,166.7,166.64,70.5]
[1747506121769,5.99880023,166.7,166.64,70.5]
[1747506122170,5.99855372,166.71,166.65,18.64964886]
[1747506123773,5.99808061,166.72,166.65,18.64964886]
[1747506124277,20.99328214,166.72,166.65,18.64964886]
[1747506125068,5.99808061,166.72,166.65,24.65012039]
[1747506125270,5.99808061,166.72,166.65,95.15012039]
[1747506125882,28.69775331,166.73,166.65,95.15012039]
[1747506126075,22.7,166.73,166.66,1.19984549]
[1747506126468,22.7,166.73,166.66,71.69984549]
[1747506126783,22.7,166.73,166.67,18.64964886]
[1747506126955,22.66,166.76,166.71,18.64964886]
[1747506127157,22.7,166.78,166.71,90.34897181]
[1747506127972,22.7,166.78,166.73,18.64964886]
[1747506128895,28.69594111,166.78,166.73,18.64964886]
[1747506129078,28.69594111,166.78,166.71,70.5]
[1747506130192,28.69594111,166.78,166.72,18.64964886]
[1747506131365,28.69594111,166.78,166.72,95.1476505]
[1747506131566,5.99594111,166.78,166.72,95.1476505]
[1747506134087,5.99556328,166.79,166.72,95.1476505]
[1747506134287,13.6392696,166.81,166.73,1.19925768]
[1747506134485,13.6392696,166.81,166.73,71.69925768]
[1747506134690,28.63412575,166.83,166.75,18.64964886]
[1747506134988,28.63385681,166.84,166.75,116.34866907]
[1747506135191,8.75799861,166.85,166.79,18.64964886]
[1747506135492,1.6398,166.86,166.79,18.64964886]
[1747506135687,5.99232981,166.88,166.79,18.64964886]
[1747506136069,5.99232981,166.88,166.82,5.99448507]
[1747506136468,5.99232981,166.88,166.81,24.64436625]
[1747506136675,22.64,166.89,166.81,121.14436625]
[1747506137091,28.63212637,166.89,166.81,121.14436625]
[1747506138301,5.99161174,166.9,166.81,121.14436625]
[1747506138504,5.99161174,166.9,166.83,18.64964886]
[1747506138890,5.99125079,166.92,166.85,18.64964886]
[1747506139202,5.99061104,166.93,166.85,18.64964886]
[1747506139379,28.63022462,166.94,166.87,18.64964886]
[1747506140194,28.63022462,166.94,166.88,5.99232981]
[1747506140393,5.98962335,166.96,166.89,18.64964886]
[1747506141700,5.98962335,166.96,166.89,24.6413671]
[1747506142999,5.98962335,166.96,166.88,18.64964886]
[1747506144105,5.98962335,166.96,166.88,25.84012192]
[1747506145318,5.98962335,166.96,166.88,19.84783367]
[1747506145616,5.98962335,166.96,166.88,18.64964886]
[1747506145997,20.96326973,166.96,166.88,18.64964886]
[1747506146191,20.96326973,166.96,166.88,89.14964886]
[1747506147313,5.98962335,166.96,166.88,95.14178927]
[1747506147516,5.98962335,166.96,166.88,96.3399102]
[1747506148104,5.98962335,166.96,166.88,89.14964886]
[1747506148299,20.96326973,166.96,166.88,89.14964886]
[1747506148505,20.96326973,166.96,166.88,70.5]
[1747506151527,26.0,166.93,166.88,70.5]
[1747506151699,30.4311,166.92,166.8,70.5]
[1747506151993,30.4311,166.92,166.81,18.64964886]
[1747506151994,26.0,166.89,166.81,18.64964886]
[1747506152194,26.0,166.89,166.8,70.5]
[1747506152825,26.0,166.89,166.8,76.49514321]
[1747506153401,26.0,166.89,166.81,18.64964886]
[1747506153626,5.99232981,166.88,166.81,24.64446208]
[1747506153919,5.99232981,166.88,166.81,95.14446208]
[1747506154836,5.99232981,166.88,166.81,89.14964886]
[1747506156238,5.99232981,166.88,166.81,70.5]
[1747506156612,20.97315435,166.88,166.81,70.5]
[1747506156811,46.97315435,166.88,166.79,70.5]
[1747506157322,22.62,166.87,166.8,18.64964886]
[1747506158606,28.6129624,166.87,166.81,5.99484443]
[1747506159645,28.6129624,166.87,166.8,24.64472768]
[1747506159817,28.6129624,166.87,166.79,96.5]
[1747506160201,22.56,166.86,166.79,96.5]
[1747506160623,22.56,166.86,166.8,18.64964886]
[1747506160836,22.56,166.86,166.8,24.64453262]
[1747506161018,22.56,166.86,166.8,95.14453262]
[1747506161210,22.56,166.9,166.83,26.0]
[1747506161409,22.56,166.9,166.84,18.64964886]
[1747506162235,5.99197075,166.89,166.84,18.64964886]
[1747506162528,5.99197075,166.89,166.84,24.64336818]
[1747506162704,5.99197075,166.89,166.84,18.64964886]
[1747506163200,5.99197075,166.89,166.83,96.5]
[1747506164414,5.99161174,166.9,166.83,96.5]
[1747506164933,5.99161174,166.9,166.84,18.64964886]
[1747506165738,5.99161174,166.9,166.83,96.5]
[1747506167258,28.53125277,166.91,166.83,96.5]
[1747506167952,28.53125277,166.91,166.83,102.49406881]
[1747506168148,28.53125277,166.91,166.84,18.64964886]
[1747506168940,43.50938469,166.91,166.83,96.5]
[1747506170941,43.50938469,166.91,166.8,102.49506679]
[1747506171349,43.50938469,166.91,166.8,96.5]
[1747506171858,26.0,166.88,166.8,70.5]
[1747506172152,26.0,166.88,166.78,18.64964886]
[1747506172544,20.9744112,166.87,166.79,2.21613465]
[1747506173359,20.9744112,166.87,166.78,24.64549381]
[1747506174460,5.99268891,166.87,166.78,24.64549381]
[1747506174668,5.99268891,166.87,166.78,25.84441915]
[1747506175262,5.99268891,166.87,166.79,2.21738814]
[1747506175463,5.99268891,166.87,166.79,5.62295034]
[1747506175768,20.97073273,166.9,166.8,8.21259197]
[1747506176272,20.97073273,166.9,166.8,78.71259197]
[1747506176573,20.97073273,166.9,166.81,2.21738814]
[1747506176947,20.97073273,166.9,166.81,5.62295034]
[1747506177243,20.97073273,166.9,166.82,2.21738814]
[1747506179570,20.97073273,166.9,166.81,2.21738814]
[1747506180571,20.97073273,166.9,166.81,8.21213692]
[1747506180748,45.06,166.89,166.82,18.64964886]
[1747506181452,45.06,166.89,166.83,2.21738814]
[1747506181958,20.97315435,166.88,166.83,2.21738814]
[1747506182189,20.97315435,166.88,166.82,2.21738814]
[1747506183205,5.99232981,166.88,166.82,26.86151942]
[1747506183384,51.05198821,166.89,166.82,26.86151942]
[1747506183998,51.05198821,166.89,166.83,2.21738814]
[1747506184475,5.99198821,166.89,166.83,8.21142327]
[1747506184673,5.99198821,166.89,166.84,2.21738814]
[1747506187087,20.9719151,166.89,166.84,2.21738814]
[1747506187319,20.9719151,166.89,166.83,70.5]
[1747506187588,20.9719151,166.89,166.8,26.0]
[1747506188037,20.9719151,166.89,166.81,2.22388022]
[1747506188631,20.9719151,166.89,166.8,26.0]
[1747506189827,20.9719151,166.89,166.75,76.6573]
[1747506189992,20.9719151,166.89,166.78,26.0]
[1747506190816,20.9719151,166.89,166.79,3.41851654]
[1747506191117,20.9719151,166.89,166.79,5.64357147]
[1747506192125,20.9719151,166.89,166.8,5.64357147]
[1747506192126,26.0,166.88,166.8,5.64357147]
[1747506192293,1.5675,166.87,166.8,5.64357147]
[1747506192709,20.97566822,166.86,166.8,5.64357147]
[1747506192913,22.46,166.85,166.8,3.41851654]
[1747506193104,22.46,166.84,166.77,3.41851654]
[1747506193697,28.9763,166.84,166.78,2.22847734]
[1747506194398,28.9763,166.84,166.79,2.22847734]
[1747506195005,28.9763,166.84,166.8,2.22847734]
[1747506195216,1.5675,166.87,166.8,2.22847734]
[1747506195402,22.46,166.86,166.8,2.22847734]
[1747506196041,22.46,166.86,166.81,2.22847734]
[1747506196515,5.99337737,166.86,166.81,8.22320555]
[1747506196712,5.99337737,166.86,166.79,18.64964886]
[1747506197439,5.99337737,166.86,166.78,76.49592277]
[1747506197803,5.99337737,166.86,166.79,5.64651289]
[1747506198014,24.0275,166.87,166.79,24.29616175]
[1747506198015,30.0203082,166.87,166.79,24.29616175]
[1747506198239,30.0203082,166.87,166.8,2.22696445]
[1747506198622,52.4603082,166.87,166.81,5.99484443]
[1747506199133,52.4603082,166.87,166.8,8.22205881]
[1747506199338,52.4603082,166.87,166.81,2.22696445]
[1747506200040,67.44203049,166.87,166.81,2.22696445]
[1747506200412,67.44203049,166.87,166.77,102.49617489]
[1747506200963,93.44203049,166.87,166.77,70.5]
[1747506201516,93.44203049,166.87,166.78,3.42170116]
[1747506201838,93.44203049,166.87,166.79,2.22793798]
[1747506202510,93.44203049,166.87,166.8,2.22793798]
[1747506203309,93.44203049,166.87,166.75,96.5]
[1747506203727,93.44203049,166.87,166.76,3.42130002]
[1747506203939,20.97692538,166.85,166.76,5.64895574]
[1747506204724,20.97692538,166.85,166.77,2.22765572]
[1747506204927,20.97692538,166.85,166.77,5.64895574]
[1747506205641,44.88,166.84,166.78,2.22765572]
[1747506205939,44.88,166.84,166.79,5.99556328]
[1747506206128,22.46,166.84,166.79,8.223219]
[1747506207053,22.46,166.84,166.8,5.64895574]
[1747506207642,22.46,166.84,166.81,2.22765572]
[1747506208743,22.46,166.84,166.79,5.99556328]
[1747506209331,22.46,166.84,166.8,2.2259002]
[1747506209531,28.45383917,166.84,166.8,2.2259002]
[1747506210051,22.46,166.84,166.8,2.2259002]